bitfinex-derivatives/quotes_BTCF0:USTF0_20250127
["timestamp","ask_amount","ask_price","bid_price","bid_amount"]
[1737961954085,0.201909,99109.0,99103.0,0.20192]
[1737961954287,0.3608,99113.0,99104.0,0.201918]
[1737961954687,0.3608,99113.0,99101.0,0.3608]
[1737961955092,0.3608,99113.0,99105.0,0.201915]
[1737961955492,0.201911,99108.0,99101.0,0.37124354]
[1737961955994,0.201911,99108.0,99102.0,0.2659]
[1737961956581,0.3608,99113.0,99102.0,0.467822]
[1737961956984,0.201909,99109.0,99102.0,0.467822]
[1737961957185,0.201909,99109.0,99102.0,0.469822]
[1737961957595,0.201909,99109.0,99102.0,0.470822]
[1737961957890,0.3608,99113.0,99108.0,0.20191]
[1737961958093,0.00015138,99117.0,99116.0,0.201894]
[1737961958283,0.04842,99127.0,99126.0,0.201874]
[1737961959181,0.3608,99147.0,99122.0,0.3608]
[1737961959381,0.3608,99147.0,99139.0,0.201846]
[1737961959585,0.00015116,99144.0,99142.0,0.201841]
[1737961960797,0.359951,99147.0,99142.0,0.201841]
[1737961961095,0.001,99144.0,99143.0,0.201838]
[1737961961288,0.201803,99161.0,99151.0,0.201821]
[1737961961485,0.201791,99167.0,99143.0,0.3608]
[1737961961688,0.201791,99167.0,99155.0,0.201814]
[1737961961897,0.3608,99170.0,99148.0,0.201828]
[1737961962098,0.201808,99159.0,99148.0,0.201828]
[1737961962288,0.201808,99159.0,99144.0,0.256]
[1737961962483,0.201808,99159.0,99149.0,0.201826]
[1737961962797,0.209868,99159.0,99149.0,0.201826]
[1737961963789,0.209868,99159.0,99149.0,0.21239071]
[1737961963986,0.209868,99159.0,99151.0,0.201823]
[1737961964389,0.210868,99159.0,99151.0,0.201823]
[1737961964586,0.00906,99159.0,99144.0,0.2666827]
[1737961964792,0.201821,99152.0,99144.0,0.2666827]
[1737961965001,0.201821,99152.0,99101.0,0.05048]
[1737961965002,0.3608,99146.0,99133.0,0.0001513]
[1737961965295,0.201858,99134.0,99133.0,0.0001513]
[1737961966899,0.20188,99123.0,99109.0,0.3608]
[1737961967203,0.20192,99104.0,99101.0,0.201924]
[1737961967392,0.20192,99104.0,99102.0,0.450823]
[1737961967898,0.20192,99104.0,99102.0,0.2489]
[1737961969495,0.00015102,99113.0,99107.0,0.201913]
[1737961969694,0.00015102,99113.0,99102.0,0.2539]
[1737961969900,0.00015102,99113.0,99108.0,0.20191]
[1737961970092,0.00015102,99113.0,99103.0,0.201921]
[1737961970292,0.20191,99109.0,99102.0,0.2559]
[1737961970492,0.00015102,99113.0,99104.0,0.201919]
[1737961970692,0.00015102,99113.0,99102.0,0.2539]
[1737961970900,0.00015102,99113.0,99111.0,0.201904]
[1737961971709,0.201864,99132.0,99107.0,0.3608]
[1737961972002,0.201866,99130.0,99121.0,0.201883]
[1737961972191,0.20187,99128.0,99121.0,0.201883]
[1737961972599,0.3608,99143.0,99117.0,0.256]
[1737961972793,0.3608,99143.0,99124.0,0.3608]
[1737961972993,0.3608,99143.0,99129.0,0.201867]
[1737961973193,0.3608,99143.0,99124.0,0.3608]
[1737961973392,0.002,99128.0,99124.0,0.3608]
[1737961973601,0.002,99128.0,99126.0,0.201872]
[1737961973800,0.001,99128.0,99126.0,0.201872]
[1737961974296,0.201882,99123.0,99117.0,0.52469493]
[1737961974498,0.201889,99119.0,99117.0,0.01039493]
[1737961974686,0.201877,99125.0,99115.0,0.5628473]
[1737961974887,0.3608,99127.0,99116.0,0.2505]
[1737961975300,0.201895,99116.0,99115.0,0.37148]
[1737961975495,0.201895,99116.0,99115.0,0.3609513]
[1737961975892,0.562695,99116.0,99115.0,0.0001513]
[1737961976412,0.201884,99122.0,99115.0,0.0001513]
[1737961976703,0.201886,99120.0,99115.0,0.0001513]
[1737961976890,0.201889,99119.0,99115.0,0.0011513]
[1737961977092,0.201893,99117.0,99115.0,0.0011513]
[1737961977694,0.3608,99124.0,99115.0,0.0011513]
[1737961977695,0.562695,99116.0,99115.0,0.0011513]
[1737961978797,0.57302008,99116.0,99115.0,0.0011513]
[1737961979693,0.57302008,99116.0,99065.0,0.050499]
[1737961979694,0.20195,99089.0,99065.0,0.050499]
[1737961979998,0.201954,99087.0,99072.0,0.201984]
[1737961980200,0.201954,99087.0,99070.0,0.29385077]
[1737961980398,0.201954,99087.0,99079.0,0.201969]
[1737961980701,0.201986,99071.0,99070.0,0.00108]
[1737961981004,0.3608,99073.0,99063.0,0.26544]
[1737961981205,0.3608,99073.0,99067.0,0.201994]
[1737961981498,0.3608,99073.0,99063.0,0.27468538]
[1737961981499,0.3608,99073.0,99061.0,0.00015138]
[1737961981713,0.562805,99062.0,99061.0,0.00015138]
[1737961986104,0.02523,99063.0,99061.0,0.00015138]
[1737961986301,0.02523,99063.0,99062.0,0.202004]
[1737961987111,0.00015138,99071.0,99070.0,0.201988]
[1737961987299,0.201957,99086.0,99080.0,0.201967]
[1737961987496,0.3608,99095.0,99076.0,0.19088488]
[1737961987797,0.3608,99103.0,99085.0,0.19088488]
[1737961988097,0.3608,99087.0,99071.0,0.5032]
[1737961988298,0.562784,99072.0,99070.0,0.00104]
[1737961988601,0.562784,99072.0,99069.0,0.00015138]
[1737961988602,0.201988,99070.0,99069.0,0.00015138]
[1737961989104,0.202006,99062.0,99060.0,0.19103626]
[1737961989303,0.001,99063.0,99060.0,0.00015138]
[1737961989505,0.001,99063.0,99062.0,0.202004]
[1737961989806,0.201999,99065.0,99060.0,0.00015138]
[1737961990103,0.202005,99062.0,99060.0,0.00015138]
[1737961990410,0.3608,99061.0,99060.0,0.00015138]
[1737961992301,0.202005,99062.0,99060.0,0.00015138]
[1737961992706,0.3608,99061.0,99060.0,0.00015138]
[1737961992907,0.3608,99061.0,99020.0,0.54284]
[1737961992908,0.202041,99044.0,99035.0,0.01022728]
[1737961993107,0.202041,99044.0,99022.0,0.3608]
[1737961993108,0.562841,99044.0,99022.0,0.611]
[1737961993310,0.3608,99044.0,99042.0,0.202044]
[1737961993508,0.3608,99053.0,99034.0,0.3608]
[1737961993700,0.202028,99051.0,99047.0,0.202033]
[1737961993906,0.00807,99053.0,99045.0,0.3608]
[1737961994226,0.202041,99044.0,99043.0,0.19239932]
[1737961994516,0.202041,99044.0,99043.0,0.00651444]
[1737961994713,0.202041,99044.0,99043.0,0.00851444]
[1737961994908,0.562841,99044.0,99043.0,0.00851444]
[1737961995501,0.202041,99044.0,99043.0,0.00851444]
[1737961995913,0.202041,99044.0,99043.0,0.00351444]
[1737961996318,0.562841,99044.0,99043.0,0.00351444]
[1737961996502,0.562841,99044.0,99043.0,0.00851444]
[1737961998211,0.562826,99052.0,99043.0,0.00851444]
[1737961998422,0.3608,99052.0,99047.0,0.202034]
[1737961998621,0.3608,99052.0,99048.0,0.2396]
[1737961998915,0.3608,99052.0,99050.0,0.202027]
[1737961999809,0.00807,99053.0,99048.0,0.2396]
[1737962000019,0.00807,99053.0,99052.0,0.202025]
[1737962000209,0.3608,99077.0,99051.0,0.3608]
[1737962000409,0.3608,99077.0,99066.0,0.201995]
[1737962000609,0.201988,99071.0,99066.0,0.201995]
[1737962001115,0.201994,99067.0,99063.0,0.3608]
[1737962001308,0.00807,99067.0,99063.0,0.3608]
[1737962001509,0.00807,99067.0,99066.0,0.201996]
[1737962002015,0.3608,99079.0,99063.0,0.3713444]
[1737962002016,0.00623,99068.0,99063.0,0.3713444]
[1737962002216,0.201961,99084.0,99073.0,0.201981]
[1737962002518,0.201962,99083.0,99071.0,0.3608]
[1737962002714,0.201964,99082.0,99076.0,0.201975]
[1737962002909,0.201977,99076.0,99063.0,0.3713444]
[1737962003109,0.002,99077.0,99073.0,0.3608]
[1737962003314,0.002,99077.0,99075.0,0.201978]
[1737962003918,0.002,99077.0,99073.0,0.3608]
[1737962003919,0.201945,99091.0,99081.0,0.201965]
[1737962004216,0.3608,99093.0,99081.0,0.3608]
[1737962004416,0.201926,99101.0,99082.0,0.2615]
[1737962004606,0.201926,99101.0,99090.0,0.19088488]
[1737962004812,0.201928,99100.0,99091.0,0.2518]
[1737962005316,0.201928,99100.0,99091.0,0.453744]
[1737962005506,0.18339385,99100.0,99091.0,0.2518]
[1737962006210,0.19088488,99110.0,99086.0,0.00015138]
[1737962006421,0.201945,99091.0,99086.0,0.00015138]
[1737962006725,0.201945,99091.0,99086.0,0.20210638]
[1737962007822,0.201925,99101.0,99087.0,0.3608]
[1737962008022,0.201917,99105.0,99087.0,0.3608]
[1737962008323,0.201917,99105.0,99090.0,0.19088488]
[1737962008615,0.3608,99109.0,99091.0,0.201944]
[1737962008813,0.3608,99109.0,99087.0,0.3608]
[1737962009013,0.201927,99100.0,99091.0,0.201944]
[1737962009314,0.201928,99100.0,99093.0,0.201941]
[1737962009515,0.201928,99100.0,99087.0,0.3608]
[1737962009516,0.201916,99106.0,99090.0,0.002]
[1737962009821,0.3608,99109.0,99090.0,0.002]
[1737962010122,0.201922,99103.0,99096.0,0.201934]
[1737962010309,0.3608,99109.0,99095.0,0.3608]
[1737962010518,0.3608,99109.0,99107.0,0.201912]
[1737962010816,0.3608,99118.0,99104.0,0.3608]
[1737962011010,0.00052001,99130.0,99114.0,0.3608]
[1737962011223,0.20184,99143.0,99133.0,0.201858]
[1737962011407,0.24980001,99149.0,99133.0,0.3608]
[1737962011610,0.201828,99149.0,99140.0,0.201844]
[1737962011809,0.201828,99149.0,99130.0,0.19088488]
[1737962011810,0.3608,99144.0,99127.0,0.20187]
[1737962012020,0.3608,99133.0,99115.0,0.5197]
[1737962012218,0.3608,99122.0,99115.0,0.2592]
[1737962012414,0.002,99130.0,99115.0,0.2592]
[1737962012415,0.201888,99120.0,99115.0,0.2592]
[1737962012817,0.18335384,99120.0,99115.0,0.26972567]
[1737962013217,0.201877,99125.0,99115.0,0.27172567]
[1737962013518,0.201879,99124.0,99115.0,0.27172567]
[1737962013918,0.201879,99124.0,99115.0,0.26972567]
[1737962014120,0.201882,99122.0,99115.0,0.26972567]
[1737962014316,0.242232,99122.0,99115.0,0.26972567]
[1737962015126,0.04035,99122.0,99121.0,0.201884]
[1737962015424,0.050451,99161.0,99118.0,0.3608]
[1737962015728,0.562636,99145.0,99135.0,0.201855]
[1737962015927,0.201837,99144.0,99135.0,0.201855]
[1737962016224,0.20186,99133.0,99126.0,0.3608]
[1737962016528,0.201837,99144.0,99126.0,0.3608]
[1737962016732,0.3608,99145.0,99133.0,0.201858]
[1737962016919,0.3608,99145.0,99130.0,0.19088488]
[1737962017127,0.3608,99145.0,99144.0,0.201837]
[1737962017323,0.08840235,99150.0,99149.0,0.201827]
[1737962018030,0.08840235,99150.0,99145.0,0.2551]
[1737962018227,0.08840235,99150.0,99148.0,0.201828]
[1737962018622,0.09040235,99150.0,99148.0,0.201828]
[1737962019029,0.09040235,99150.0,99148.0,0.21206646]
[1737962019219,0.0718691,99150.0,99148.0,0.21206646]
[1737962020525,0.0718691,99150.0,99148.0,0.01023846]
[1737962020727,0.0718691,99150.0,99145.0,0.2551]
[1737962020925,0.20183,99148.0,99145.0,0.2551]
[1737962021228,0.0718691,99150.0,99146.0,0.201832]
[1737962021432,0.00091,99148.0,99145.0,0.26562163]
[1737962022423,0.00091,99148.0,99145.0,0.46745663]
[1737962023032,0.00091,99148.0,99145.0,0.01052163]
[1737962023234,0.20274,99148.0,99141.0,0.201842]
[1737962023831,0.201839,99143.0,99141.0,0.01030659]
[1737962024125,0.201851,99137.0,99131.0,0.2606]
[1737962024330,0.201851,99137.0,99135.0,0.01027851]
[1737962024631,0.201851,99137.0,99135.0,0.0001513]
[1737962025532,0.00394,99138.0,99135.0,0.0001513]
[1737962026036,0.205789,99138.0,99135.0,0.0001513]
[1737962026224,0.201852,99137.0,99135.0,0.0001513]
[1737962026531,0.00394,99138.0,99135.0,0.0001513]
[1737962028930,0.00394,99138.0,99137.0,0.201851]
[1737962030326,0.00494,99138.0,99137.0,0.201851]
[1737962030925,0.00494,99138.0,99136.0,0.2504]
[1737962030926,0.00091,99148.0,99136.0,0.2504]
[1737962031229,0.14733725,99163.0,99162.0,0.201801]
[1737962031230,0.14789726,99163.0,99162.0,0.201801]
[1737962031534,0.14733725,99163.0,99162.0,0.201801]
[1737962032429,0.1288029,99163.0,99162.0,0.202801]
[1737962033730,0.3306019,99163.0,99162.0,0.001]
[1737962034330,0.201849,99139.0,99138.0,0.3608]
[1737962034532,0.201855,99136.0,99129.0,0.563428]
[1737962034838,0.201855,99136.0,99135.0,0.01034117]
[1737962035134,0.201855,99136.0,99135.0,0.0001513]
[1737962036640,0.3608,99137.0,99105.0,0.56272]
[1737962036641,0.201903,99114.0,99105.0,0.56272]
[1737962036834,0.201903,99114.0,99107.0,0.01191905]
[1737962037040,0.3608,99118.0,99107.0,0.00151348]
[1737962037041,0.562715,99108.0,99107.0,0.00151348]
[1737962037536,0.562696,99118.0,99107.0,0.00151348]
[1737962037730,0.2019,99116.0,99108.0,0.19088488]
[1737962038032,0.00015122,99122.0,99107.0,0.00151348]
[1737962038330,0.00015122,99122.0,99117.0,0.201896]
[1737962038536,0.00015122,99122.0,99118.0,0.201893]
[1737962038721,0.00015122,99122.0,99111.0,0.3608]
[1737962038927,0.00015122,99122.0,99117.0,0.201911]
[1737962039435,0.00015122,99122.0,99111.0,0.3608]
[1737962039635,0.00015122,99122.0,99118.0,0.201908]
[1737962039828,0.00015122,99122.0,99113.0,0.201918]
[1737962040029,0.00015122,99122.0,99117.0,0.002]
[1737962040226,0.201903,99121.0,99117.0,0.002]
[1737962040539,0.201908,99119.0,99117.0,0.002]
[1737962041040,0.3608,99119.0,99103.0,0.0001513]
[1737962041334,0.201938,99104.0,99103.0,1e-08]
[1737962041535,0.562738,99104.0,99103.0,1e-08]
[1737962042131,0.862738,99104.0,99103.0,1e-08]
[1737962042929,0.863738,99104.0,99103.0,1e-08]
[1737962043329,0.564738,99104.0,99103.0,1e-08]
[1737962043534,0.864738,99104.0,99103.0,1e-08]
[1737962043734,0.87529118,99104.0,99103.0,1e-08]
[1737962043937,0.57529118,99104.0,99103.0,1e-08]
[1737962044136,0.564738,99104.0,99103.0,1e-08]
[1737962044340,0.002,99104.0,99103.0,0.20194001]
[1737962044641,0.002,99104.0,99103.0,0.56274001]
[1737962045132,0.002,99104.0,99103.0,0.57310839]
[1737962046226,0.001,99104.0,99103.0,0.57310839]
[1737962046426,0.3608,99123.0,99107.0,0.20193]
[1737962046639,0.3608,99123.0,99111.0,0.3608]
[1737962047034,0.201873,99136.0,99119.0,0.3608]
[1737962047233,0.201873,99136.0,99121.0,0.201903]
[1737962048039,0.201875,99135.0,99121.0,0.201903]
[1737962048230,0.3608,99140.0,99120.0,0.2428]
[1737962048231,0.20205322,99122.0,99120.0,0.2428]
[1737962048431,0.20205322,99122.0,99111.0,0.3618]
[1737962048432,0.00015122,99122.0,99111.0,0.3618]
[1737962048738,0.201921,99112.0,99111.0,0.001]
[1737962049429,0.3608,99115.0,99104.0,0.01047988]
[1737962049633,0.3608,99115.0,99103.0,1e-08]
[1737962050446,0.201921,99112.0,99111.0,0.001]
[1737962050847,0.201921,99112.0,99111.0,0.003]
[1737962051044,0.201921,99112.0,99111.0,0.002]
[1737962051539,0.201938,99104.0,99103.0,0.00600001]
[1737962051734,0.562738,99104.0,99103.0,0.00600001]
[1737962051931,0.562738,99104.0,99103.0,0.00200001]
[1737962052740,0.562738,99104.0,99103.0,0.00600001]
[1737962053338,0.562738,99104.0,99103.0,0.00400001]
[1737962053951,0.862738,99104.0,99103.0,1e-08]
[1737962054138,0.862738,99104.0,99066.0,0.01046526]
[1737962054139,0.201989,99079.0,99066.0,0.01046526]
[1737962054441,0.201989,99079.0,99065.0,0.2514]
[1737962054442,0.562789,99079.0,99065.0,0.2514]
[1737962055245,0.562789,99079.0,99069.0,0.00015138]
[1737962055445,0.562789,99079.0,99078.0,0.18319127]
[1737962056245,0.562789,99079.0,99078.0,0.18619127]
[1737962057139,0.564789,99079.0,99078.0,0.18319127]
[1737962057543,0.564789,99079.0,99078.0,0.18019127]
[1737962057848,0.3688,99079.0,99069.0,0.00015138]
[1737962058047,0.202001,99073.0,99069.0,0.00015138]
[1737962059243,0.207001,99073.0,99069.0,0.00015138]
[1737962060248,0.2172653,99073.0,99069.0,0.00015138]
[1737962060449,0.2192653,99073.0,99069.0,0.00015138]
[1737962060948,0.209001,99073.0,99069.0,0.00015138]
[1737962062150,0.202017,99065.0,99064.0,0.30019304]
[1737962062451,0.562817,99065.0,99064.0,0.30019304]
[1737962063056,0.562817,99065.0,99057.0,0.35976428]
[1737962063057,0.3608,99065.0,99057.0,0.35976428]
[1737962063246,0.3608,99065.0,99013.0,0.14172]
[1737962063247,0.202091,99029.0,99015.0,0.202118]
[1737962063441,0.562891,99029.0,99019.0,0.2365]
[1737962063649,0.562891,99029.0,99027.0,0.01043745]
[1737962064451,0.562891,99029.0,99021.0,0.01020804]
[1737962064848,0.562891,99029.0,99019.0,0.00015147]
[1737962065054,0.562891,99029.0,99020.0,0.01019261]
[1737962065948,0.562891,99029.0,99028.0,0.00551469]
[1737962066153,0.563891,99029.0,99028.0,0.01451469]
[1737962066349,0.563891,99029.0,99028.0,0.013]
[1737962066748,0.202095,99027.0,99026.0,0.00076]
[1737962066948,0.3618,99029.0,99020.0,0.3333245]
[1737962066949,0.202107,99021.0,99020.0,0.3333245]
[1737962067255,0.562907,99021.0,99020.0,0.3333245]
[1737962068457,0.562907,99021.0,99020.0,0.3373245]
[1737962069750,0.3608,99021.0,99020.0,0.3393245]
[1737962070652,0.3608,99021.0,99020.0,0.5414335]
[1737962071349,0.3608,99021.0,99020.0,0.3393245]
[1737962072351,0.202093,99028.0,99020.0,0.3393245]
[1737962072551,0.202093,99028.0,99021.0,0.2474]
[1737962073264,0.3608,99031.0,99021.0,0.2474]
[1737962073461,0.202104,99023.0,99021.0,0.2474]
[1737962073853,0.202091,99029.0,99021.0,0.2474]
[1737962074054,0.00015147,99038.0,99021.0,0.2474]
[1737962074353,0.00015147,99038.0,99037.0,0.202074]
[1737962074560,0.202081,99034.0,99026.0,0.202096]
[1737962074746,0.00015147,99038.0,99030.0,0.202088]
[1737962074950,0.00015147,99038.0,99031.0,0.2276]
[1737962074951,0.3608,99034.0,99031.0,0.2276]
[1737962075150,0.202084,99033.0,99031.0,0.2276]
[1737962075567,0.202105,99022.0,99021.0,0.004]
[1737962075754,0.202105,99022.0,99021.0,0.002]
[1737962076262,0.202109,99020.0,99019.0,0.23776044]
[1737962076462,0.562909,99020.0,99019.0,0.19396557]
[1737962076654,0.862909,99020.0,99019.0,0.19396557]
[1737962077056,0.562909,99020.0,99019.0,0.19396557]
[1737962077263,0.862909,99020.0,99019.0,0.19396557]
[1737962077663,0.562909,99020.0,99019.0,0.19396557]
[1737962078567,0.564909,99020.0,99019.0,0.19396557]
[1737962095382,0.564909,99020.0,99019.0,0.39607657]
[1737962095383,0.195809,99020.0,99019.0,0.39607657]
[1737962095566,0.202083,99033.0,99030.0,0.202088]
[1737962095966,0.56449385,99036.0,99020.0,0.2362]
[1737962096171,0.3608,99027.0,99020.0,0.2362]
[1737962096380,0.202105,99022.0,99020.0,0.2362]
[1737962097764,0.204105,99022.0,99020.0,0.2362]
[1737962100276,0.204105,99022.0,99020.0,0.438309]
[1737962100277,0.002,99022.0,99020.0,0.438309]
[1737962100473,0.20369385,99036.0,99035.0,0.202078]
[1737962100870,0.20369385,99036.0,99029.0,0.202089]
[1737962101072,0.20208,99035.0,99031.0,0.202086]
[1737962101272,0.20369385,99036.0,99026.0,0.36156]
[1737962101475,0.20369385,99036.0,99026.0,0.3608]
[1737962101674,0.20369385,99036.0,99032.0,0.202083]
[1737962101991,0.202081,99034.0,99026.0,0.3608]
[1737962102281,0.21169385,99036.0,99026.0,0.37099321]
[1737962102482,0.21169385,99036.0,99035.0,0.202078]
[1737962102673,0.3608,99053.0,99034.0,0.3608]
[1737962102982,0.20205,99049.0,99046.0,0.202055]
[1737962103175,0.3608,99053.0,99040.0,0.19088488]
[1737962103176,0.3608,99053.0,99051.0,0.202044]
[1737962103375,0.3608,99065.0,99047.0,0.2222]
[1737962103880,0.3608,99065.0,99053.0,0.202041]
[1737962103881,0.00015147,99061.0,99053.0,0.202041]
[1737962104086,0.00015147,99061.0,99051.0,0.3608]
[1737962104279,0.00015147,99061.0,99059.0,0.202028]
[1737962104583,0.3608,99090.0,99070.0,0.202007]
[1737962104778,0.202006,99071.0,99069.0,0.3608]
[1737962105085,0.202045,99051.0,99050.0,0.00227422]
[1737962105282,0.202045,99051.0,99050.0,0.00151422]
[1737962105578,0.18351014,99051.0,99050.0,0.00151422]
[1737962106802,0.02523,99052.0,99050.0,0.00151422]
[1737962106982,0.202045,99051.0,99050.0,0.00151422]
[1737962107187,0.02523,99052.0,99050.0,0.00151422]
[1737962107384,0.227274,99052.0,99050.0,0.00151422]
[1737962108185,0.227274,99052.0,99050.0,0.00451422]
[1737962108690,0.02523,99052.0,99051.0,0.202047]
[1737962109187,0.02523,99052.0,99050.0,0.00451422]
[1737962109582,0.227275,99052.0,99050.0,0.00451422]
[1737962110087,0.228275,99052.0,99050.0,0.00151422]
[1737962110791,0.227275,99052.0,99051.0,0.00013627]
[1737962111086,0.228275,99052.0,99051.0,0.00013627]
[1737962111384,0.231275,99052.0,99051.0,0.00013627]
[1737962111687,0.230275,99052.0,99051.0,0.00013627]
[1737962111889,0.231275,99052.0,99051.0,0.00013627]
[1737962112087,0.232275,99052.0,99051.0,0.00013627]
[1737962112288,0.232275,99052.0,99041.0,0.00015147]
[1737962112289,0.202064,99042.0,99041.0,0.00015147]
[1737962112585,0.3608,99042.0,99020.0,0.2386]
[1737962112777,0.2021,99024.0,99020.0,0.2386]
[1737962112976,0.050516,99041.0,99020.0,0.2386]
[1737962112977,0.3608,99029.0,99020.0,0.2386]
[1737962113181,0.3608,99029.0,99010.0,0.2195]
[1737962113477,0.202117,99016.0,99012.0,0.202124]
[1737962113680,0.202117,99016.0,99012.0,0.00015147]
[1737962114182,0.202117,99016.0,99015.0,0.01172908]
[1737962114487,0.202117,99016.0,99015.0,0.01872908]
[1737962114681,0.202117,99016.0,99015.0,0.02172908]
[1737962114881,0.202102,99024.0,99015.0,0.02172908]
[1737962115076,0.001,99016.0,99015.0,0.02172908]
[1737962115287,0.001,99016.0,99015.0,0.01872908]
[1737962115589,0.001,99016.0,99015.0,0.02172908]
[1737962115891,0.203117,99016.0,99015.0,0.01]
[1737962117190,0.202117,99016.0,99015.0,0.003]
[1737962117889,0.202117,99016.0,99015.0,0.001]
[1737962120795,0.202147,99001.0,99000.0,0.1]
[1737962120988,0.202147,99001.0,99000.0,0.09943921]
[1737962120989,0.923747,99001.0,99000.0,0.09943921]
[1737962121296,0.202176,98987.0,98980.0,0.01001526]
[1737962121488,0.3608,98989.0,98988.0,0.202174]
[1737962121803,0.36136001,99001.0,99000.0,0.202149]
[1737962121804,0.3608,99001.0,99000.0,0.202149]
[1737962121997,0.202135,99008.0,99005.0,0.202137]
[1737962122197,0.20228047,99010.0,99001.0,0.202147]
[1737962122389,0.202145,99002.0,99001.0,0.202147]
[1737962122681,0.202147,99001.0,99000.0,0.002]
[1737962123286,0.562947,99001.0,99000.0,0.002]
[1737962123490,0.202154,98998.0,98997.0,0.00015147]
[1737962124096,0.00115,98999.0,98988.0,0.004]
[1737962124284,0.202172,98989.0,98988.0,0.004]
[1737962124901,0.202172,98989.0,98987.0,0.202176]
[1737962125401,0.22665622,98998.0,98997.0,0.202156]
[1737962125693,0.202159,98996.0,98992.0,0.202165]
[1737962125994,0.202164,98993.0,98987.0,0.4621]
[1737962126295,0.202164,98993.0,98992.0,0.3608]
[1737962126593,0.42881022,98998.0,98992.0,0.3608]
[1737962126895,0.22665622,98998.0,98992.0,0.3608]
[1737962127195,0.22665622,98998.0,98988.0,0.002]
[1737962127400,0.202172,98989.0,98988.0,0.005]
[1737962128894,0.202176,98987.0,98986.0,0.00151534]
[1737962130699,0.203176,98987.0,98986.0,0.00151534]
[1737962131391,0.204176,98987.0,98986.0,0.00151534]
[1737962131895,0.202176,98987.0,98986.0,0.00151534]
[1737962132101,0.204176,98987.0,98986.0,0.00151534]
[1737962132297,0.002,98987.0,98978.0,0.00015147]
[1737962132494,0.202192,98979.0,98978.0,0.00015147]
[1737962132691,0.002,98987.0,98983.0,0.202183]
[1737962132896,0.204177,98987.0,98984.0,0.3608]
[1737962133198,0.003,98987.0,98986.0,0.202178]
[1737962134500,0.001,98987.0,98986.0,0.21244009]
[1737962135302,0.202176,98987.0,98986.0,0.01126209]
[1737962135503,0.202176,98987.0,98986.0,0.004]
[1737962135698,0.202176,98987.0,98986.0,0.01415985]
[1737962135899,0.202176,98987.0,98986.0,0.004]
[1737962136707,0.422376,98987.0,98986.0,0.004]
[1737962136898,0.422376,98987.0,98986.0,0.003]
[1737962137208,0.446,98987.0,98986.0,0.002]
[1737962137399,0.69872,98987.0,98986.0,0.002]
[1737962137798,0.496544,98987.0,98978.0,0.00015147]
[1737962137998,0.496544,98987.0,98928.0,0.050573]
[1737962137999,0.050548,98978.0,98934.0,0.3608]
[1737962138300,0.202237,98957.0,98951.0,0.01047538]
[1737962139110,0.202237,98957.0,98953.0,0.202245]
[1737962139403,0.00015156,98966.0,98955.0,0.202241]
[1737962139605,0.20223,98961.0,98953.0,0.563044]
[1737962139806,0.202235,98959.0,98954.0,0.202243]
[1737962140105,0.202235,98959.0,98955.0,0.202241]
[1737962140307,0.00015156,98966.0,98955.0,0.202241]
[1737962140503,0.00015156,98966.0,98953.0,0.3608]
[1737962140804,0.202237,98957.0,98956.0,0.00451576]
[1737962141395,0.00015156,98966.0,98964.0,0.202223]
[1737962141600,0.20237156,98966.0,98956.0,0.19540064]
[1737962141903,0.202221,98965.0,98960.0,0.202231]
[1737962142406,0.202225,98964.0,98960.0,0.202231]
[1737962142601,0.00015156,98966.0,98960.0,0.202231]
[1737962142810,0.202227,98962.0,98960.0,0.202231]
[1737962143302,0.00015156,98966.0,98956.0,0.19440064]
[1737962143498,0.202229,98961.0,98957.0,0.202236]
[1737962143705,0.20237156,98966.0,98956.0,0.19540064]
[1737962143899,0.00015156,98966.0,98965.0,0.202221]
[1737962144112,0.00015156,98966.0,98961.0,0.3608]
[1737962144113,0.2202,98987.0,98962.0,0.050556]
[1737962144326,0.22665622,98998.0,98982.0,0.3608]
[1737962144603,0.22665622,98998.0,98990.0,0.202168]
[1737962144807,0.202166,98992.0,98983.0,0.2268]
[1737962145306,0.202166,98992.0,98988.0,0.202173]
[1737962145509,0.202182,98985.0,98983.0,0.01046057]
[1737962145705,0.3608,98993.0,98982.0,0.001]
[1737962145910,0.202183,98984.0,98982.0,0.001]
[1737962146113,0.36298,98993.0,98982.0,0.01139308]
[1737962146905,0.565145,98993.0,98988.0,0.202173]
[1737962147112,0.36298,98993.0,98982.0,0.21357808]
[1737962147305,0.202174,98988.0,98982.0,0.01039308]
[1737962147501,0.004,98992.0,98987.0,0.202176]
[1737962147702,0.004,98992.0,98991.0,0.202168]
[1737962148311,0.00618,98993.0,98992.0,0.202166]
[1737962148712,0.00318,98993.0,98992.0,0.202166]
[1737962149912,0.00318,98993.0,98992.0,0.21257953]
[1737962150617,0.00818,98993.0,98992.0,0.21357953]
[1737962151417,0.01118,98993.0,98992.0,0.01141353]
[1737962152812,0.01118,98993.0,98992.0,0.21357953]
[1737962153015,0.213344,98993.0,98992.0,0.01141353]
[1737962153212,0.26248763,98993.0,98992.0,0.001]
[1737962153815,0.06032363,98993.0,98986.0,0.3608]
[1737962154009,0.252708,98992.0,98972.0,0.202206]
[1737962154317,0.050541,98992.0,98978.0,0.37096751]
[1737962154615,0.202192,98979.0,98978.0,0.00015156]
[1737962156616,0.3608,98983.0,98960.0,0.12746257]
[1737962156811,0.202229,98961.0,98960.0,0.12746257]
[1737962157009,0.3608,98972.0,98951.0,0.12746257]
[1737962157010,0.202233,98959.0,98951.0,0.12746257]
[1737962157213,0.3608,98972.0,98955.0,0.202241]
[1737962157413,0.3608,98972.0,98958.0,0.37102245]
[1737962158306,0.202227,98963.0,98962.0,0.12746257]
[1737962158520,0.202233,98959.0,98958.0,0.37402245]
[1737962159406,0.3608,98972.0,98958.0,0.37402245]
[1737962159618,0.202225,98963.0,98962.0,0.12746257]
[1737962159814,0.202229,98961.0,98958.0,0.57701645]